[Event "Titled Tuesday Blitz July 18 Late 2023"]
[White "Ezat, Mohamed"]
[Black "Topalov, Aleksandar"]
[WhiteFideId "10600906"]
[BlackFideId "925659"]
[WhiteElo "2549"]
[BlackElo "2384"]
[Result "1-0"]
[Round "3"]
[TimeControl "180+2"]
[Date "2023.07.18"]
[WhiteClock "0:00:50"]
[BlackClock "0:00:00"]
[Board "107"]

1. d4 {[%clk 0:03:00]}  Nf6 {[%clk 0:02:59]} 2. c4 {[%clk 0:02:59]}  c5 {[%clk 0:02:59]} 3. d5 {[%clk 0:02:58]}  d6 {[%clk 0:02:59]} 4. Nc3 {[%clk 0:02:56]}  g6 {[%clk 0:03:00]} 5. e4 {[%clk 0:02:57]}  Bg7 {[%clk 0:02:59]} 6. Be2 {[%clk 0:02:57]}  O-O {[%clk 0:02:59]} 7. Bg5 {[%clk 0:02:57]}  h6 {[%clk 0:02:51]} 8. Bf4 {[%clk 0:02:56]}  e6 {[%clk 0:02:44]} 9. Qd2 {[%clk 0:02:54]}  exd5 {[%clk 0:02:42]} 10. exd5 {[%clk 0:02:55]}  Kh7 {[%clk 0:02:36]} 11. Nf3 {[%clk 0:02:55]}  a6 {[%clk 0:02:33]} 12. a4 {[%clk 0:02:54]}  Re8 {[%clk 0:02:29]} 13. O-O {[%clk 0:02:51]}  Bg4 {[%clk 0:02:25]} 14. h3 {[%clk 0:02:51]}  Bxf3 {[%clk 0:02:25]} 15. Bxf3 {[%clk 0:02:51]}  Qc7 {[%clk 0:02:16]} 16. Qc2 {[%clk 0:02:45]}  Nbd7 {[%clk 0:02:09]} 17. Be2 {[%clk 0:02:44]}  Kg8 {[%clk 0:01:55]} 18. Bh2 {[%clk 0:02:38]}  Re7 {[%clk 0:01:44]} 19. f4 {[%clk 0:02:34]}  Rae8 {[%clk 0:01:42]} 20. Bd3 {[%clk 0:02:34]}  Nf8 {[%clk 0:01:38]} 21. Kh1 {[%clk 0:02:32]}  Qd7 {[%clk 0:01:28]} 22. a5 {[%clk 0:02:28]}  Nh5 {[%clk 0:01:19]} 23. Rab1 {[%clk 0:02:18]}  Bd4 {[%clk 0:01:12]} 24. Ne4 {[%clk 0:02:07]}  f5 {[%clk 0:01:05]} 25. Nd2 {[%clk 0:02:00]}  Re3 {[%clk 0:00:58]} 26. Nf3 {[%clk 0:01:59]}  Bf6 {[%clk 0:00:41]} 27. Rbe1 {[%clk 0:01:41]}  Rxe1 {[%clk 0:00:36]} 28. Nxe1 {[%clk 0:01:40]}  Re3 {[%clk 0:00:28]} 29. Nf3 {[%clk 0:01:39]}  Qe7 {[%clk 0:00:21]} 30. g4 {[%clk 0:01:38]}  fxg4 {[%clk 0:00:08]} 31. hxg4 {[%clk 0:01:37]}  Ng7 {[%clk 0:00:08]} 32. Bxg6 {[%clk 0:01:25]}  Re2 {[%clk 0:00:08]} 33. Qb1 {[%clk 0:01:21]}  Nxg6 {[%clk 0:00:07]} 34. Qxg6 {[%clk 0:01:20]}  Qe4 {[%clk 0:00:06]} 35. Qxf6 {[%clk 0:01:15]}  Re3 {[%clk 0:00:04]} 36. Kg2 {[%clk 0:01:00]}  Re2+ {[%clk 0:00:03]} 37. Rf2 {[%clk 0:00:57]}  Re3 {[%clk 0:00:01]} 38. Qd8+ {[%clk 0:00:49]}  Kh7 {[%clk 0:00:00]} 39. Qxd6 {[%clk 0:00:50]} 1-0


[Site "https://www.chess.com"]

[Event "Titled Tuesday Blitz July 18 Late 2023"]
[White "Jorajuria Mendoza, Algol"]
[Black "Jessel, Stephen"]
[WhiteFideId "5128897"]
[BlackFideId "628859"]
[WhiteElo "2384"]
[BlackElo "2548"]
[Result "1-0"]
[Round "3"]
[TimeControl "180+2"]
[Date "2023.07.18"]
[WhiteClock "0:00:21"]
[BlackClock "0:00:00"]
[Board "108"]

1. e4 {[%clk 0:03:00]}  e6 {[%clk 0:02:59]} 2. d4 {[%clk 0:03:00]}  d5 {[%clk 0:03:00]} 3. Nd2 {[%clk 0:03:01]}  Nf6 {[%clk 0:03:00]} 4. e5 {[%clk 0:02:58]}  Nfd7 {[%clk 0:03:00]} 5. f4 {[%clk 0:02:58]}  c5 {[%clk 0:03:01]} 6. c3 {[%clk 0:02:59]}  Nc6 {[%clk 0:03:02]} 7. Ndf3 {[%clk 0:02:59]}  cxd4 {[%clk 0:03:02]} 8. cxd4 {[%clk 0:02:59]}  a5 {[%clk 0:03:03]} 9. Bd3 {[%clk 0:02:52]}  a4 {[%clk 0:03:03]} 10. Ne2 {[%clk 0:02:50]}  Nb6 {[%clk 0:03:03]} 11. O-O {[%clk 0:02:36]}  Be7 {[%clk 0:03:03]} 12. g4 {[%clk 0:02:31]}  h5 {[%clk 0:03:02]} 13. h3 {[%clk 0:02:28]}  Nc4 {[%clk 0:02:56]} 14. Rb1 {[%clk 0:02:18]}  Qb6 {[%clk 0:02:48]} 15. b3 {[%clk 0:02:16]}  axb3 {[%clk 0:02:35]} 16. axb3 {[%clk 0:02:15]}  Na3 {[%clk 0:02:32]} 17. Ra1 {[%clk 0:02:06]}  hxg4 {[%clk 0:02:30]} 18. hxg4 {[%clk 0:02:06]}  Bd7 {[%clk 0:02:07]} 19. Kg2 {[%clk 0:02:02]}  Ra5 {[%clk 0:01:39]} 20. b4 {[%clk 0:01:57]}  Bxb4 {[%clk 0:01:28]} 21. Qb3 {[%clk 0:01:55]}  Nc4 {[%clk 0:01:17]} 22. Rb1 {[%clk 0:01:45]}  Qa6 {[%clk 0:00:46]} 23. Kg3 {[%clk 0:01:11]}  b5 {[%clk 0:00:39]} 24. f5 {[%clk 0:01:08]}  Ra2 {[%clk 0:00:20]} 25. Bb2 {[%clk 0:00:54]}  Qa4 {[%clk 0:00:16]} 26. Bxc4 {[%clk 0:00:43]}  bxc4 {[%clk 0:00:10]} 27. Qe3 {[%clk 0:00:41]}  exf5 {[%clk 0:00:06]} 28. Ng5 {[%clk 0:00:32]}  Qc2 {[%clk 0:00:02]} 29. Rh1 {[%clk 0:00:24]}  Rxh1 {[%clk 0:00:01]} 30. Rxh1 {[%clk 0:00:25]}  Bd2 {[%clk 0:00:01]} 31. Rh8+ {[%clk 0:00:20]}  Ke7 {[%clk 0:00:00]} 32. Ba3+ {[%clk 0:00:21]} 1-0


[Site "https://www.chess.com"]

[Event "Titled Tuesday Blitz July 18 Late 2023"]
[White "Gerbelli Neto, Eduardo"]
[Black "Mekhane, Adam"]
[WhiteFideId "2103281"]
[BlackFideId "36050601"]
[WhiteElo "2370"]
[BlackElo "2545"]
[Result "0-1"]
[Round "3"]
[TimeControl "180+2"]
[Date "2023.07.18"]
[WhiteClock "0:00:27"]
[BlackClock "0:00:10"]
[Board "109"]

1. e4 {[%clk 0:03:00]}  c5 {[%clk 0:02:56]} 2. Nc3 {[%clk 0:03:00]}  g6 {[%clk 0:02:55]} 3. f4 {[%clk 0:03:01]}  Bg7 {[%clk 0:02:55]} 4. Nf3 {[%clk 0:03:02]}  Nc6 {[%clk 0:02:55]} 5. Bc4 {[%clk 0:03:02]}  d6 {[%clk 0:02:53]} 6. O-O {[%clk 0:03:01]}  e6 {[%clk 0:02:53]} 7. d3 {[%clk 0:03:02]}  Nge7 {[%clk 0:02:54]} 8. Bb3 {[%clk 0:03:02]}  Nd4 {[%clk 0:02:54]} 9. Qe1 {[%clk 0:03:02]}  Nec6 {[%clk 0:02:45]} 10. f5 {[%clk 0:02:56]}  Nxf3+ {[%clk 0:02:43]} 11. Rxf3 {[%clk 0:02:54]}  Ne5 {[%clk 0:02:43]} 12. Rf1 {[%clk 0:02:54]}  exf5 {[%clk 0:02:43]} 13. exf5 {[%clk 0:02:47]}  Bxf5 {[%clk 0:02:43]} 14. Rxf5 {[%clk 0:02:42]}  gxf5 {[%clk 0:02:39]} 15. Qg3 {[%clk 0:02:40]}  Ng6 {[%clk 0:02:20]} 16. Nd5 {[%clk 0:02:26]}  Be5 {[%clk 0:02:13]} 17. Qf3 {[%clk 0:02:26]}  O-O {[%clk 0:01:41]} 18. Qxf5 {[%clk 0:02:15]}  Qh4 {[%clk 0:01:37]} 19. g3 {[%clk 0:02:13]}  Qd8 {[%clk 0:00:46]} 20. Bg5 {[%clk 0:01:48]}  Qc8 {[%clk 0:00:46]} 21. Qf3 {[%clk 0:01:36]}  Qh3 {[%clk 0:00:39]} 22. Rf1 {[%clk 0:01:30]}  Rae8 {[%clk 0:00:36]} 23. Bf6 {[%clk 0:01:22]}  Re6 {[%clk 0:00:16]} 24. Bxe5 {[%clk 0:00:57]}  Nxe5 {[%clk 0:00:16]} 25. Nf6+ {[%clk 0:00:52]}  Kh8 {[%clk 0:00:12]} 26. Qf4 {[%clk 0:00:48]}  Ng6 {[%clk 0:00:11]} 27. Qf2 {[%clk 0:00:42]}  Qh6 {[%clk 0:00:09]} 28. Bxe6 {[%clk 0:00:40]}  fxe6 {[%clk 0:00:10]} 29. Qe2 {[%clk 0:00:31]}  e5 {[%clk 0:00:10]} 30. Ng4 {[%clk 0:00:30]}  Qg7 {[%clk 0:00:09]} 31. Rxf8+ {[%clk 0:00:28]}  Qxf8 {[%clk 0:00:09]} 32. Ne3 {[%clk 0:00:29]}  Kg7 {[%clk 0:00:09]} 33. Nd5 {[%clk 0:00:28]}  Qf5 {[%clk 0:00:08]} 34. Qe4 {[%clk 0:00:28]}  Qxe4 {[%clk 0:00:08]} 35. dxe4 {[%clk 0:00:29]}  Kf7 {[%clk 0:00:08]} 36. Kf2 {[%clk 0:00:29]}  Ne7 {[%clk 0:00:08]} 37. Ke3 {[%clk 0:00:29]}  Nxd5+ {[%clk 0:00:08]} 38. exd5 {[%clk 0:00:30]}  Kf6 {[%clk 0:00:09]} 39. Ke4 {[%clk 0:00:31]}  Kg5 {[%clk 0:00:09]} 40. h3 {[%clk 0:00:31]}  h5 {[%clk 0:00:09]} 41. c3 {[%clk 0:00:29]}  b5 {[%clk 0:00:09]} 42. b4 {[%clk 0:00:28]}  c4 {[%clk 0:00:07]} 43. a3 {[%clk 0:00:28]}  a6 {[%clk 0:00:07]} 44. Ke3 {[%clk 0:00:25]}  Kf5 {[%clk 0:00:06]} 45. Kf3 {[%clk 0:00:23]}  e4+ {[%clk 0:00:06]} 46. Ke3 {[%clk 0:00:23]}  Ke5 {[%clk 0:00:07]} 47. g4 {[%clk 0:00:24]}  hxg4 {[%clk 0:00:06]} 48. hxg4 {[%clk 0:00:25]}  Kxd5 {[%clk 0:00:06]} 49. g5 {[%clk 0:00:25]}  Ke5 {[%clk 0:00:06]} 50. g6 {[%clk 0:00:25]}  Kf6 {[%clk 0:00:05]} 51. Kxe4 {[%clk 0:00:26]}  Kxg6 {[%clk 0:00:05]} 52. Kd5 {[%clk 0:00:27]}  Kf5 {[%clk 0:00:05]} 53. Kxd6 {[%clk 0:00:27]}  Ke4 {[%clk 0:00:06]} 54. Kc6 {[%clk 0:00:25]}  Kd3 {[%clk 0:00:06]} 55. Kb6 {[%clk 0:00:26]}  Kxc3 {[%clk 0:00:06]} 56. Kxa6 {[%clk 0:00:27]}  Kb3 {[%clk 0:00:06]} 57. Kxb5 {[%clk 0:00:25]}  c3 {[%clk 0:00:06]} 58. a4 {[%clk 0:00:25]}  c2 {[%clk 0:00:07]} 59. a5 {[%clk 0:00:26]}  c1=Q {[%clk 0:00:07]} 60. a6 {[%clk 0:00:27]}  Qh1 {[%clk 0:00:07]} 61. Ka5 {[%clk 0:00:26]}  Qa8 {[%clk 0:00:08]} 62. b5 {[%clk 0:00:26]}  Kc4 {[%clk 0:00:09]} 63. b6 {[%clk 0:00:27]}  Qd5+ {[%clk 0:00:08]} 64. Ka4 {[%clk 0:00:27]}  Qb5+ {[%clk 0:00:09]} 65. Ka3 {[%clk 0:00:27]}  Qb3# {[%clk 0:00:10]} 0-1


[Site "https://www.chess.com"]

[Event "Titled Tuesday Blitz July 18 Late 2023"]
[White "Storn, Justin"]
[Black "Koc, Przemyslaw"]
[WhiteFideId "30922720"]
[BlackFideId "1109081"]
[WhiteElo "2361"]
[BlackElo "2541"]
[Result "1-0"]
[Round "3"]
[TimeControl "180+2"]
[Date "2023.07.18"]
[WhiteClock "0:01:34"]
[BlackClock "0:01:51"]
[Board "113"]

1. d4 {[%clk 0:03:00]}  d6 {[%clk 0:02:59]} 2. c4 {[%clk 0:02:59]}  e5 {[%clk 0:02:59]} 3. Nf3 {[%clk 0:02:58]}  e4 {[%clk 0:02:59]} 4. Ng5 {[%clk 0:02:58]}  f5 {[%clk 0:02:59]} 5. h4 {[%clk 0:02:48]}  Nf6 {[%clk 0:02:57]} 6. Nc3 {[%clk 0:02:48]}  c6 {[%clk 0:02:48]} 7. d5 {[%clk 0:02:37]}  h6 {[%clk 0:02:46]} 8. Nh3 {[%clk 0:02:36]}  Nbd7 {[%clk 0:02:40]} 9. Nf4 {[%clk 0:02:34]}  Ne5 {[%clk 0:02:40]} 10. e3 {[%clk 0:02:29]}  g6 {[%clk 0:02:35]} 11. b3 {[%clk 0:02:27]}  c5 {[%clk 0:02:35]} 12. Bb2 {[%clk 0:02:27]}  Bg7 {[%clk 0:02:34]} 13. Nce2 {[%clk 0:02:20]}  O-O {[%clk 0:02:28]} 14. Bxe5 {[%clk 0:02:16]}  dxe5 {[%clk 0:02:28]} 15. Nxg6 {[%clk 0:02:16]}  Re8 {[%clk 0:02:27]} 16. Nc3 {[%clk 0:02:10]}  h5 {[%clk 0:02:22]} 17. Be2 {[%clk 0:02:06]}  Ng4 {[%clk 0:02:17]} 18. d6 {[%clk 0:01:57]}  Kh7 {[%clk 0:02:13]} 19. Ne7 {[%clk 0:01:53]}  Be6 {[%clk 0:02:06]} 20. Bxg4 {[%clk 0:01:46]}  hxg4 {[%clk 0:02:04]} 21. f3 {[%clk 0:01:44]}  gxf3 {[%clk 0:01:58]} 22. gxf3 {[%clk 0:01:44]}  exf3 {[%clk 0:01:54]} 23. Qxf3 {[%clk 0:01:43]}  e4 {[%clk 0:01:55]} 24. Qh5+ {[%clk 0:01:43]}  Bh6 {[%clk 0:01:51]} 25. Qg6+ {[%clk 0:01:34]} 1-0


[Site "https://www.chess.com"]

[Event "Titled Tuesday Blitz July 18 Late 2023"]
[White "ExchangeAB"]
[Black "Schekachikhin, Maksim"]
[BlackFideId "24177830"]
[WhiteElo "2354"]
[BlackElo "2535"]
[Result "1/2-1/2"]
[Round "3"]
[TimeControl "180+2"]
[Date "2023.07.18"]
[WhiteClock "0:00:24"]
[BlackClock "0:00:14"]
[Board "115"]

1. d4 {[%clk 0:03:00]}  Nf6 {[%clk 0:02:57]} 2. Nc3 {[%clk 0:03:00]}  e6 {[%clk 0:02:54]} 3. e4 {[%clk 0:02:50]}  d5 {[%clk 0:02:53]} 4. e5 {[%clk 0:02:50]}  Nfd7 {[%clk 0:02:53]} 5. f4 {[%clk 0:02:48]}  c5 {[%clk 0:02:52]} 6. Nf3 {[%clk 0:02:47]}  Be7 {[%clk 0:02:48]} 7. Be3 {[%clk 0:02:41]}  b6 {[%clk 0:02:47]} 8. Qd2 {[%clk 0:02:38]}  O-O {[%clk 0:02:45]} 9. Bd3 {[%clk 0:02:34]}  Ba6 {[%clk 0:02:43]} 10. O-O {[%clk 0:02:31]}  Bxd3 {[%clk 0:02:42]} 11. cxd3 {[%clk 0:02:18]}  Nc6 {[%clk 0:02:42]} 12. a3 {[%clk 0:02:15]}  cxd4 {[%clk 0:02:36]} 13. Nxd4 {[%clk 0:02:15]}  Nxd4 {[%clk 0:02:37]} 14. Bxd4 {[%clk 0:02:16]}  Bc5 {[%clk 0:02:37]} 15. Bxc5 {[%clk 0:02:04]}  bxc5 {[%clk 0:02:37]} 16. d4 {[%clk 0:01:57]}  Rb8 {[%clk 0:02:31]} 17. f5 {[%clk 0:01:29]}  cxd4 {[%clk 0:02:27]} 18. Qxd4 {[%clk 0:01:30]}  Qb6 {[%clk 0:02:25]} 19. Qxb6 {[%clk 0:01:01]}  Rxb6 {[%clk 0:02:26]} 20. Na4 {[%clk 0:00:57]}  Ra6 {[%clk 0:02:22]} 21. Nc3 {[%clk 0:00:57]}  Nxe5 {[%clk 0:02:21]} 22. fxe6 {[%clk 0:00:54]}  fxe6 {[%clk 0:02:22]} 23. Rfe1 {[%clk 0:00:50]}  Nd3 {[%clk 0:02:18]} 24. Re2 {[%clk 0:00:49]}  Rc6 {[%clk 0:02:13]} 25. h3 {[%clk 0:00:43]}  Rb8 {[%clk 0:02:10]} 26. Na4 {[%clk 0:00:36]}  e5 {[%clk 0:02:10]} 27. b4 {[%clk 0:00:34]}  e4 {[%clk 0:02:09]} 28. Rd1 {[%clk 0:00:32]}  a5 {[%clk 0:02:00]} 29. Nb2 {[%clk 0:00:23]}  axb4 {[%clk 0:01:41]} 30. Nxd3 {[%clk 0:00:22]}  exd3 {[%clk 0:01:42]} 31. Rxd3 {[%clk 0:00:21]}  b3 {[%clk 0:01:40]} 32. Rb2 {[%clk 0:00:21]}  Rc1+ {[%clk 0:01:35]} 33. Kh2 {[%clk 0:00:21]}  Rc2 {[%clk 0:01:33]} 34. Rbxb3 {[%clk 0:00:21]}  Rxb3 {[%clk 0:01:31]} 35. Rxb3 {[%clk 0:00:22]}  Kf7 {[%clk 0:01:30]} 36. Kg3 {[%clk 0:00:22]}  Ke6 {[%clk 0:01:28]} 37. Kf3 {[%clk 0:00:22]}  Ke5 {[%clk 0:01:28]} 38. a4 {[%clk 0:00:20]}  Ra2 {[%clk 0:01:27]} 39. Rb7 {[%clk 0:00:20]}  Ra3+ {[%clk 0:01:25]} 40. Kf2 {[%clk 0:00:20]}  g5 {[%clk 0:01:22]} 41. Rxh7 {[%clk 0:00:20]}  Rxa4 {[%clk 0:01:22]} 42. Rg7 {[%clk 0:00:20]}  Kf5 {[%clk 0:01:16]} 43. Rd7 {[%clk 0:00:20]}  d4 {[%clk 0:01:08]} 44. Rd8 {[%clk 0:00:20]}  Ke4 {[%clk 0:01:08]} 45. Re8+ {[%clk 0:00:20]}  Kd3 {[%clk 0:01:08]} 46. Kg3 {[%clk 0:00:20]}  Kc3 {[%clk 0:01:03]} 47. Kg4 {[%clk 0:00:21]}  Ra5 {[%clk 0:01:02]} 48. Rc8+ {[%clk 0:00:20]}  Kd2 {[%clk 0:01:02]} 49. Rd8 {[%clk 0:00:20]}  d3 {[%clk 0:01:03]} 50. g3 {[%clk 0:00:21]}  Ke2 {[%clk 0:00:59]} 51. h4 {[%clk 0:00:20]}  gxh4 {[%clk 0:00:58]} 52. gxh4 {[%clk 0:00:21]}  d2 {[%clk 0:00:57]} 53. h5 {[%clk 0:00:21]}  d1=Q {[%clk 0:00:37]} 54. Rxd1 {[%clk 0:00:22]}  Kxd1 {[%clk 0:00:37]} 55. h6 {[%clk 0:00:23]}  Ke2 {[%clk 0:00:37]} 56. h7 {[%clk 0:00:23]}  Ra8 {[%clk 0:00:37]} 57. Kg5 {[%clk 0:00:23]}  Kf3 {[%clk 0:00:38]} 58. Kg6 {[%clk 0:00:24]}  Kf4 {[%clk 0:00:38]} 59. Kg7 {[%clk 0:00:25]}  Kg5 {[%clk 0:00:19]} 60. h8=Q {[%clk 0:00:24]}  Ra7+ {[%clk 0:00:16]} 61. Kg8 {[%clk 0:00:24]}  Ra8+ {[%clk 0:00:13]} 62. Kg7 {[%clk 0:00:24]}  Rxh8 {[%clk 0:00:14]} 63. Kxh8 {[%clk 0:00:24]} 1/2-1/2


[Site "https://www.chess.com"]

[Event "Titled Tuesday Blitz July 18 Late 2023"]
[White "Santos Flores, Alberto"]
[Black "Avalos Parra, Joao"]
[WhiteFideId "3601234"]
[BlackFideId "3402541"]
[WhiteElo "2532"]
[BlackElo "2345"]
[Result "0-1"]
[Round "3"]
[TimeControl "180+2"]
[Date "2023.07.18"]
[WhiteClock "0:00:05"]
[BlackClock "0:00:14"]
[Board "117"]

1. e4 {[%clk 0:03:00]}  e5 {[%clk 0:03:00]} 2. Nf3 {[%clk 0:02:57]}  Nc6 {[%clk 0:03:00]} 3. Bc4 {[%clk 0:02:55]}  Bc5 {[%clk 0:02:59]} 4. c3 {[%clk 0:02:54]}  Nf6 {[%clk 0:02:59]} 5. d3 {[%clk 0:02:53]}  O-O {[%clk 0:02:58]} 6. O-O {[%clk 0:02:52]}  d6 {[%clk 0:02:59]} 7. h3 {[%clk 0:02:50]}  a5 {[%clk 0:02:59]} 8. Re1 {[%clk 0:02:48]}  Ba7 {[%clk 0:02:57]} 9. Bg5 {[%clk 0:02:45]}  Be6 {[%clk 0:02:54]} 10. Bb5 {[%clk 0:02:44]}  h6 {[%clk 0:02:47]} 11. Bh4 {[%clk 0:02:44]}  Nb8 {[%clk 0:02:36]} 12. Nbd2 {[%clk 0:02:39]}  c6 {[%clk 0:02:34]} 13. Ba4 {[%clk 0:02:38]}  Nbd7 {[%clk 0:02:34]} 14. Nf1 {[%clk 0:02:32]}  Qc7 {[%clk 0:02:31]} 15. d4 {[%clk 0:02:27]}  Rfe8 {[%clk 0:02:23]} 16. Bc2 {[%clk 0:02:26]}  Nh7 {[%clk 0:01:06]} 17. Ne3 {[%clk 0:02:22]}  Ndf8 {[%clk 0:01:00]} 18. Bg3 {[%clk 0:02:14]}  Ng6 {[%clk 0:00:58]} 19. Nf5 {[%clk 0:02:05]}  Rad8 {[%clk 0:00:58]} 20. h4 {[%clk 0:01:53]}  exd4 {[%clk 0:00:53]} 21. cxd4 {[%clk 0:01:49]}  Ne7 {[%clk 0:00:51]} 22. Nxe7+ {[%clk 0:01:29]}  Rxe7 {[%clk 0:00:51]} 23. Qd3 {[%clk 0:01:19]}  Bg4 {[%clk 0:00:47]} 24. e5 {[%clk 0:01:14]}  Nf8 {[%clk 0:00:46]} 25. exd6 {[%clk 0:01:12]}  Rxe1+ {[%clk 0:00:46]} 26. Rxe1 {[%clk 0:01:13]}  Qd7 {[%clk 0:00:43]} 27. Ne5 {[%clk 0:01:11]}  Qc8 {[%clk 0:00:42]} 28. Nxg4 {[%clk 0:00:33]}  Qxg4 {[%clk 0:00:43]} 29. Re4 {[%clk 0:00:32]}  Qg6 {[%clk 0:00:37]} 30. Be5 {[%clk 0:00:25]}  Bb8 {[%clk 0:00:37]} 31. Qe2 {[%clk 0:00:20]}  f6 {[%clk 0:00:30]} 32. Rg4 {[%clk 0:00:18]}  Qe8 {[%clk 0:00:22]} 33. Qd2 {[%clk 0:00:12]}  fxe5 {[%clk 0:00:21]} 34. Qxh6 {[%clk 0:00:12]}  Qd7 {[%clk 0:00:17]} 35. Rg3 {[%clk 0:00:09]}  Ne6 {[%clk 0:00:09]} 36. Qh7+ {[%clk 0:00:09]}  Kf8 {[%clk 0:00:09]} 37. Qh8+ {[%clk 0:00:09]}  Kf7 {[%clk 0:00:09]} 38. Bg6+ {[%clk 0:00:06]}  Kf6 {[%clk 0:00:10]} 39. Rf3+ {[%clk 0:00:06]}  Nf4 {[%clk 0:00:10]} 40. Qh5 {[%clk 0:00:05]}  Qxd6 {[%clk 0:00:09]} 41. Qg5+ {[%clk 0:00:05]}  Ke6 {[%clk 0:00:08]} 42. dxe5 {[%clk 0:00:06]}  Qxe5 {[%clk 0:00:08]} 43. Qxf4 {[%clk 0:00:05]}  Qxf4 {[%clk 0:00:08]} 44. Rxf4 {[%clk 0:00:06]}  Bxf4 {[%clk 0:00:09]} 45. g3 {[%clk 0:00:06]}  Rd1+ {[%clk 0:00:09]} 46. Kg2 {[%clk 0:00:06]}  Be5 {[%clk 0:00:10]} 47. Be4 {[%clk 0:00:06]}  Rd2 {[%clk 0:00:11]} 48. b3 {[%clk 0:00:06]}  Rxa2 {[%clk 0:00:11]} 49. h5 {[%clk 0:00:06]}  Rb2 {[%clk 0:00:12]} 50. g4 {[%clk 0:00:07]}  Bd4 {[%clk 0:00:12]} 51. g5 {[%clk 0:00:08]}  Rxf2+ {[%clk 0:00:12]} 52. Kg3 {[%clk 0:00:08]}  Re2 {[%clk 0:00:12]} 53. Bg6 {[%clk 0:00:08]}  Re3+ {[%clk 0:00:13]} 54. Kg4 {[%clk 0:00:08]}  Rxb3 {[%clk 0:00:13]} 55. h6 {[%clk 0:00:09]}  gxh6 {[%clk 0:00:13]} 56. gxh6 {[%clk 0:00:10]}  Ke7 {[%clk 0:00:13]} 57. h7 {[%clk 0:00:05]}  Bh8 {[%clk 0:00:14]} 0-1


[Site "https://www.chess.com"]

[Event "Titled Tuesday Blitz July 18 Late 2023"]
[White "Miguelitro69"]
[Black "Zhang, Derek"]
[BlackFideId "2087871"]
[WhiteElo "2305"]
[BlackElo "2528"]
[Result "0-1"]
[Round "3"]
[TimeControl "180+2"]
[Date "2023.07.18"]
[WhiteClock "0:00:19"]
[BlackClock "0:00:14"]
[Board "121"]

1. e4 {[%clk 0:03:00]}  e6 {[%clk 0:03:00]} 2. Qe2 {[%clk 0:02:59]}  Ne7 {[%clk 0:02:57]} 3. Nf3 {[%clk 0:02:58]}  d5 {[%clk 0:02:56]} 4. d3 {[%clk 0:02:56]}  Nbc6 {[%clk 0:02:52]} 5. g3 {[%clk 0:02:55]}  b6 {[%clk 0:02:48]} 6. Bg2 {[%clk 0:02:54]}  Bb7 {[%clk 0:02:49]} 7. O-O {[%clk 0:02:54]}  Qd7 {[%clk 0:02:49]} 8. Rd1 {[%clk 0:02:53]}  g6 {[%clk 0:02:45]} 9. c3 {[%clk 0:02:47]}  Bg7 {[%clk 0:02:45]} 10. e5 {[%clk 0:02:39]}  Nd8 {[%clk 0:02:36]} 11. d4 {[%clk 0:02:38]}  c5 {[%clk 0:02:35]} 12. dxc5 {[%clk 0:02:37]}  bxc5 {[%clk 0:02:36]} 13. Na3 {[%clk 0:02:36]}  O-O {[%clk 0:02:29]} 14. Bg5 {[%clk 0:02:30]}  Ndc6 {[%clk 0:02:12]} 15. Bf6 {[%clk 0:02:14]}  Kh8 {[%clk 0:02:10]} 16. Qe3 {[%clk 0:02:11]}  Ng8 {[%clk 0:02:10]} 17. Bxg7+ {[%clk 0:02:11]}  Kxg7 {[%clk 0:02:11]} 18. Qxc5 {[%clk 0:02:11]}  Rfc8 {[%clk 0:02:01]} 19. Qe3 {[%clk 0:02:10]}  Rab8 {[%clk 0:02:01]} 20. Rd2 {[%clk 0:02:09]}  Ba6 {[%clk 0:02:00]} 21. h4 {[%clk 0:02:08]}  Na5 {[%clk 0:01:40]} 22. Nd4 {[%clk 0:02:04]}  Nc6 {[%clk 0:01:32]} 23. h5 {[%clk 0:02:02]}  Nxd4 {[%clk 0:01:32]} 24. Qxd4 {[%clk 0:01:58]}  Qe7 {[%clk 0:01:29]} 25. Qf4 {[%clk 0:01:36]}  Rb6 {[%clk 0:01:17]} 26. Re1 {[%clk 0:01:29]}  Rcb8 {[%clk 0:01:17]} 27. b4 {[%clk 0:01:22]}  Rc8 {[%clk 0:01:13]} 28. Re3 {[%clk 0:01:21]}  Rbc6 {[%clk 0:00:58]} 29. Qf3 {[%clk 0:01:06]}  R6c7 {[%clk 0:00:54]} 30. Nc2 {[%clk 0:01:06]}  Bc4 {[%clk 0:00:43]} 31. Nd4 {[%clk 0:01:05]}  a5 {[%clk 0:00:43]} 32. a3 {[%clk 0:01:02]}  axb4 {[%clk 0:00:43]} 33. cxb4 {[%clk 0:00:55]}  Ba6 {[%clk 0:00:41]} 34. hxg6 {[%clk 0:00:51]}  Rc1+ {[%clk 0:00:38]} 35. Kh2 {[%clk 0:00:44]}  hxg6 {[%clk 0:00:27]} 36. Bh3 {[%clk 0:00:44]}  Nh6 {[%clk 0:00:26]} 37. Rd1 {[%clk 0:00:36]}  Rxd1 {[%clk 0:00:21]} 38. Qxd1 {[%clk 0:00:36]}  Nf5 {[%clk 0:00:19]} 39. Bxf5 {[%clk 0:00:31]}  gxf5 {[%clk 0:00:20]} 40. Kg2 {[%clk 0:00:29]}  Bc4 {[%clk 0:00:19]} 41. Nf3 {[%clk 0:00:27]}  Rh8 {[%clk 0:00:18]} 42. Nh4 {[%clk 0:00:26]}  Qg5 {[%clk 0:00:19]} 43. Qf3 {[%clk 0:00:25]}  Rxh4 {[%clk 0:00:18]} 44. b5 {[%clk 0:00:21]}  Bxb5 {[%clk 0:00:17]} 45. Re1 {[%clk 0:00:20]}  Re4 {[%clk 0:00:15]} 46. Rxe4 {[%clk 0:00:20]}  fxe4 {[%clk 0:00:14]} 47. Qb3 {[%clk 0:00:20]}  Be2 {[%clk 0:00:13]} 48. Qe3 {[%clk 0:00:18]}  Bf3+ {[%clk 0:00:12]} 49. Kf1 {[%clk 0:00:17]}  Qxe3 {[%clk 0:00:12]} 50. fxe3 {[%clk 0:00:18]}  Bd1 {[%clk 0:00:13]} 51. Ke1 {[%clk 0:00:17]}  Ba4 {[%clk 0:00:13]} 52. Kd2 {[%clk 0:00:18]}  Kg6 {[%clk 0:00:13]} 53. Kc3 {[%clk 0:00:19]}  Kf5 {[%clk 0:00:14]} 54. Kb4 {[%clk 0:00:20]}  Bd1 {[%clk 0:00:14]} 55. Kc5 {[%clk 0:00:20]}  Kxe5 {[%clk 0:00:13]} 56. Kb4 {[%clk 0:00:20]}  d4 {[%clk 0:00:13]} 57. a4 {[%clk 0:00:21]}  Bxa4 {[%clk 0:00:12]} 58. Kxa4 {[%clk 0:00:21]}  dxe3 {[%clk 0:00:13]} 59. Kb3 {[%clk 0:00:22]}  e2 {[%clk 0:00:14]} 60. Kc2 {[%clk 0:00:19]}  e1=Q {[%clk 0:00:14]} 0-1


[Site "https://www.chess.com"]